fUSD/lending_fUSD_20240418
["ID","MTS","AMOUNT","RATE_DAILY","PERIOD"]
[322870885,1713443451720,-313.58324232,0.00016998,2]
[322870886,1713443451732,-295.415974,0.00018,2]
[322870887,1713443451742,-811.269,0.0001806,2]
[322870888,1713443451754,-295.415974,0.000182,2]
[322870889,1713443451765,-150.01,0.00018231,2]
[322870890,1713443451774,-13.84260967,0.00018231,2]
[322870891,1713443451882,-2928.45816557,0.00018231,2]
[322870892,1713443451892,-2057.58943443,0.00018232,2]
[322870893,1713443451903,-124912.36999998,0.00018232,2]
[322870894,1713443451936,-1552.65,0.00018232,2]
[322870895,1713443459890,196.44201668,0.0001688,2]
[322870896,1713443459912,43.83409891,0.0001688,2]
[322870897,1713443468397,899.67822297,0.0001688,2]
[322870898,1713443681723,179.29,0.00013739,2]
[322870899,1713443699260,538.93739047,0.00016886,2]
[322870900,1713443809343,151.0,0.0002391,120]
[322870901,1713443854217,-155.0,0.00016887,2]
[322870902,1713443854237,-1982.64360516,0.00016887,2]
[322870903,1713443854257,-503.9147,0.00016888,2]
[322870904,1713443854277,-150.0,0.00016997,2]
[322870905,1713443854298,-150.0,0.00016997,2]
[322870906,1713443854318,-909.62175321,0.00016998,2]
[322870907,1713443854340,-4401.60261938,0.00016998,2]
[322870908,1713443854362,-155.27980554,0.00016998,2]
[322870909,1713443854383,-709.5115768,0.00016999,2]
[322870910,1713443854411,-1250.0,0.00017,2]
[322870911,1713443854432,-430.24,0.00017162,2]
[322870912,1713443854452,-167.08,0.00017187,2]
[322870913,1713443854472,-150.0,0.00017214,2]
[322870914,1713443854493,-803.94,0.00017411,2]
[322870915,1713443854513,-151.0,0.000179,2]
[322870916,1713443854534,-151.0,0.000179,2]
[322870917,1713443854556,-8439.96368756,0.00017939,2]
[322870918,1713443854575,-247.615,0.0001794,2]
[322870919,1713443854595,-1958.986,0.0001794,2]
[322870920,1713443854615,-639.608228,0.00017999,2]
[322870921,1713443854636,-151.0,0.00018,2]
[322870922,1713443854656,-150.0,0.00018,2]
[322870923,1713443854675,-1474.16348733,0.00018,2]
[322870924,1713443854696,-186.587295,0.00018082,2]
[322870925,1713443854716,-13010.73929934,0.00018129,2]
[322870926,1713443854736,-317.42459683,0.00018129,2]
[322870927,1713443854757,-215.2105,0.00018129,2]
[322870928,1713443854778,-2500.0,0.00018131,2]
[322870929,1713443854799,-164.24862711,0.00018132,2]
[322870930,1713443854820,-994.9521077,0.00018132,2]
[322870931,1713443854840,-538.32580727,0.00018228,2]
[322870932,1713443854860,-500.0,0.00018228,2]
[322870933,1713443854881,-500.0,0.00018228,2]
[322870934,1713443854904,-522416.58328434,0.00018229,2]
[322870935,1713443854926,-500.0,0.00018229,2]
[322870936,1713443854947,-500.0,0.00018229,2]
[322870937,1713443854968,-160.91122999,0.0001823,2]
[322870938,1713443854988,-301.98668028,0.0001823,2]
[322870939,1713443855008,-203.73128511,0.0001823,2]
[322870940,1713443855029,-155.0,0.0001823,2]
[322870941,1713443855051,-190.39404198,0.0001823,2]
[322870942,1713443855072,-307.91625811,0.0001823,2]
[322870943,1713443855093,-645.57179099,0.0001823,2]
[322870944,1713443855115,-459.82395262,0.0001823,7]
[322870945,1713443855140,-155.40492135,0.0001823,2]
[322870946,1713443855160,-155.0,0.0001823,2]
[322870947,1713443855184,-616.81603865,0.0001823,2]
[322870948,1713443855204,-234.82852337,0.0001823,2]
[322870949,1713443855232,-438315.46549279,0.0001823,2]
[322870950,1713443855252,-500.0,0.0001823,2]
[322870951,1713443855272,-500.0,0.0001823,2]
[322870952,1713443855292,-500.0,0.0001823,2]
[322870953,1713443855313,-171.37991422,0.00018231,2]
[322870954,1713443855335,-222.50410271,0.00018231,2]
[322870955,1713443855357,-1814.58281425,0.00018231,2]
[322870956,1713443855380,-706064.08314018,0.00018231,2]
[322870957,1713443855402,-1681.36265453,0.00018231,5]
[322870958,1713443855423,-572.0,0.00018232,2]
[322870959,1713443855447,-1534592.3966783,0.00018232,2]
[322870960,1713443886894,749.05627992,0.00016407,2]
[322870961,1713443973384,834.82,0.00015528,2]
[322870963,1713444051262,5798.97,0.00017321,15]
[322870964,1713444068228,754.38400773,0.00016886,2]
[322870965,1713444068251,4000.0,0.00016886,2]
[322870966,1713444068275,4000.0,0.00016886,2]
[322870967,1713444068300,4000.0,0.00016886,2]
[322870968,1713444152931,-150.0,0.00016786,2]
[322870969,1713444152953,-1850.0,0.00016987,2]
[322870970,1713444155009,-132.64360516,0.00016987,2]
[322870971,1713444155031,-1867.35639484,0.00016988,2]
[322870972,1713444155452,-2000.0,0.00016987,2]
[322870973,1713444155718,-2000.0,0.00016987,2]
[322870974,1713444155960,-2000.0,0.00016987,2]
[322870975,1713444156319,-2000.0,0.00016987,2]
[322870976,1713444156861,-2000.0,0.00016987,2]
[322870977,1713444157151,-2000.0,0.00016987,2]
[322870978,1713444157306,-2000.0,0.00016987,2]
[322870979,1713444157535,-2000.0,0.00016987,2]
[322870980,1713444157769,-2000.0,0.00016987,2]
[322870981,1713444158191,-2000.0,0.00016987,2]
[322870982,1713444158335,-2000.0,0.00016987,2]
[322870983,1713444158478,-2000.0,0.00016987,2]
[322870984,1713444158714,-2000.0,0.00016987,2]
[322870985,1713444159131,-2000.0,0.00016987,2]
[322870986,1713444159617,-1441.2466185,0.00016987,2]
[322870987,1713444159640,-558.7533815,0.00016988,2]
[322870988,1713444160185,-1740.49980493,0.00016988,2]
[322870989,1713444181587,259.50019507,0.000156,2]
[322870990,1713444181607,2000.0,0.000156,2]
[322870991,1713444181629,2000.0,0.000156,2]
[322870992,1713444181655,299.95935501,0.000156,2]
[322870993,1713444191502,-2000.0,0.000156,2]
[322870994,1713444191672,-2000.0,0.000156,2]
[322870995,1713444192040,-2000.0,0.000156,2]
[322870996,1713444192379,-2000.0,0.000156,2]
[322870997,1713444192682,-2000.0,0.000156,2]
[322870998,1713444192985,-2000.0,0.000156,2]
[322870999,1713444193357,-2000.0,0.000156,2]
[322871000,1713444193621,-2000.0,0.000156,2]
[322871001,1713444193979,-2000.0,0.000156,2]
[322871002,1713444194646,-2000.0,0.000156,2]
[322871003,1713444194961,-2000.0,0.000156,2]
[322871004,1713444195358,-2000.0,0.000156,2]
[322871005,1713444195989,-2000.0,0.000156,2]
[322871006,1713444196178,-2000.0,0.000156,2]
[322871007,1713444196403,-2000.0,0.000156,2]
[322871008,1713444196777,-2000.0,0.000156,2]
[322871009,1713444198315,-2000.0,0.000156,2]
[322871010,1713444198542,-2000.0,0.000156,2]
[322871011,1713444199075,-2000.0,0.000156,2]
[322871012,1713444200943,-2000.0,0.000156,2]
[322871013,1713444277010,-532.81402985,0.00015596,2]
[322871014,1713444277032,-538.93739047,0.00015597,2]
[322871015,1713444277055,-523.66195964,0.00015598,2]
[322871016,1713444277076,-2404.58662004,0.00015598,2]
[322871017,1713444278153,-4000.0,0.00015598,2]
[322871018,1713444278631,-4000.0,0.00015598,2]
[322871019,1713444278974,-2780.16162388,0.00015598,2]
[322871020,1713444278995,-1219.83837612,0.00015598,2]
[322871021,1713444279333,-3100.25003266,0.00015598,2]
[322871022,1713444279353,-899.74996734,0.00015599,2]
[322871023,1713444279714,-4000.0,0.00015599,2]
[322871024,1713444280663,-4000.0,0.00015599,2]
[322871025,1713444289130,-1000.0,0.00015599,2]
[322871026,1713444298548,-2000.0,0.00015599,2]
[322871027,1713444299114,-2000.0,0.00015599,2]
[322871028,1713444299899,-2000.0,0.00015599,2]
[322871029,1713444300238,-2000.0,0.00015599,2]
[322871030,1713444300515,-2000.0,0.00015599,2]
[322871031,1713444300950,-2000.0,0.00015599,2]
[322871032,1713444301437,-2000.0,0.00015599,2]
[322871033,1713444301731,-2000.0,0.00015599,2]
[322871034,1713444302090,-2000.0,0.00015599,2]
[322871035,1713444303083,-150.0,0.00015598,2]
[322871036,1713444303105,-1850.0,0.00015599,2]
[322871037,1713444304070,-2000.0,0.00015599,2]
[322871038,1713444328104,179.29,0.00013413,2]
[322871039,1713444424324,151.0,0.00024093,30]
[322871040,1713444424446,151.0,0.00023611,120]
[322871041,1713444517663,871.55,0.00014669,2]
[322871042,1713444551656,5436.53,0.00016516,15]
[322871043,1713444551929,5436.53,0.00019256,15]
[322871044,1713444555170,-538.93739047,0.00015597,2]
[322871045,1713444555190,-150.0,0.00015598,2]
[322871046,1713444555211,-150.0,0.00015598,2]
[322871047,1713444555230,-976.03848978,0.00015598,2]
[322871048,1713444555250,-812.95291975,0.00015599,2]
[322871049,1713444594896,161.4743902,0.00015499,2]
[322871092,1713444633224,-363.53802358,0.00015598,2]
[322871093,1713444633233,-1423.91873508,0.00015599,2]
[322871094,1713444633243,-3979.70628418,0.00015599,2]
[322871095,1713444634194,-3087.27365,0.00015599,2]
[322871096,1713444634205,-275.55442903,0.00015599,2]
[322871097,1713444634267,-13911.0,0.00015599,2]
[322871098,1713444634281,-893.97357438,0.00015599,2]
[322871099,1713444634299,-500.71354731,0.00015599,2]
[322871100,1713444634329,-1814.81108222,0.00015599,2]
[322871101,1713444634368,-371.232,0.00015599,2]
[322871102,1713444634381,-927.97732535,0.00015599,2]
[322871103,1713444634391,-1040.08149497,0.00015599,2]
[322871104,1713444634401,-4223.84117968,0.000156,2]
[322871105,1713444634496,-5356.01039988,0.000156,2]
[322871115,1713444638731,-35860.68887036,0.000156,2]
[322871116,1713444638741,-1587.83,0.00016541,2]
[322871117,1713444638750,-341.96,0.00016622,2]
[322871118,1713444638759,-200.0,0.00016634,2]
[322871119,1713444638768,-500.0,0.00016636,2]
[322871120,1713444638777,-178.61,0.0001668,2]
[322871121,1713444638787,-250.0,0.00016688,2]
[322871122,1713444638796,-167.928565,0.00016712,2]
[322871123,1713444638805,-216.92,0.00016721,2]
[322871124,1713444638814,-655.8,0.00016905,2]
[322871125,1713444638824,-198.23,0.00016914,2]
[322871126,1713444638833,-499.99,0.00016914,2]
[322871127,1713444638842,-871.55,0.00016933,2]
[322871128,1713444638851,-1030.38846551,0.0001699,2]
[322871129,1713444638861,-157.9,0.00017151,2]
[322871130,1713444638869,-210.0,0.00017158,2]
[322871131,1713444638878,-210.0,0.00017158,2]
[322871132,1713444638888,-150.0,0.00017205,2]
[322871133,1713444638898,-200.0,0.00017232,2]
[322871134,1713444638908,-157.9,0.00017254,2]
[322871135,1713444638918,-18276.09349026,0.00017303,2]
[322871136,1713444638938,-854.4499999,0.00017303,2]
[322871137,1713444638999,-4769.45650984,0.00017303,2]
[322871138,1713444639008,-706.68302737,0.00017319,2]
[322871139,1713444639018,-167.43,0.00017499,2]
[322871140,1713444639026,-167.928565,0.00017534,2]
[322871141,1713444639035,-491.0,0.000179,2]
[322871142,1713444639044,-1474.16348733,0.00018026,2]
[322871143,1713444639054,-7779.57088936,0.00018027,2]
[322871144,1713444639063,-861.12946826,0.00018029,2]
[322871145,1713444639072,-393.5481,0.0001805,2]
[322871146,1713444639082,-16588.6467,0.00018109,4]
[322871147,1713444639091,-305.07906936,0.00018127,2]
[322871148,1713444639101,-10558.75178458,0.00018127,2]
[322871149,1713444639110,-1244.65634193,0.00018127,2]
[322871150,1713444639120,-1868.06030025,0.00018127,2]
[322871151,1713444639129,-192.59530807,0.00018127,2]
[322871152,1713444639139,-155.0,0.00018127,2]
[322871153,1713444639148,-3773.69257213,0.00018127,2]
[322871154,1713444639157,-203.79893697,0.00018127,2]
[322871155,1713444639166,-4316.6070152,0.00018127,2]
[322871156,1713444639176,-220.66660495,0.00018127,2]
[322871157,1713444639185,-200.5852135,0.00018127,2]
[322871158,1713444639194,-1298.43503542,0.00018127,2]
[322871159,1713444639203,-1178.33598849,0.00018127,2]
[322871160,1713444639213,-2397.43789429,0.00018127,2]
[322871161,1713444639226,-376.48214074,0.00018127,2]
[322871162,1713444639235,-155.0,0.00018127,2]
[322871163,1713444639244,-155.16974398,0.00018127,2]
[322871164,1713444639253,-531.32954115,0.00018127,2]
[322871165,1713444639262,-471.6542864,0.00018127,2]
[322871166,1713444639271,-1869.46195215,0.00018128,2]
[322871167,1713444639281,-1156.23,0.00018128,2]
[322871168,1713444639290,-39974.5807,0.00018129,2]
[322871169,1713444639299,-41406.3474,0.00018129,2]
[322871170,1713444639309,-765.4445,0.00018129,2]
[322871171,1713444639318,-80534.0978,0.00018129,2]
[322871172,1713444639327,-5777.7994,0.00018129,2]
[322871173,1713444639336,-175.73085815,0.00018132,2]
[322871174,1713444639345,-179.66021463,0.00018132,2]
[322871175,1713444639354,-317.42459681,0.00018132,2]
[322871176,1713444639363,-2591.79321108,0.00018132,2]
[322871177,1713444639374,-263.13145596,0.00018132,2]
[322871178,1713444639386,-663.30140514,0.00018132,2]
[322871179,1713444639398,-3600.3487,0.00018132,2]
[322871180,1713444639407,-151.73,0.00018222,2]
[322871181,1713444639417,-151.73,0.00018222,2]
[322871182,1713444639427,-151.73,0.00018222,2]
[322871183,1713444639436,-151.73,0.00018222,2]
[322871184,1713444639446,-151.73,0.00018222,2]
[322871185,1713444639455,-151.73,0.00018222,2]
[322871186,1713444639464,-151.73,0.00018222,2]
[322871187,1713444639478,-151.73,0.00018222,2]
[322871188,1713444639488,-151.73,0.00018222,2]
[322871189,1713444639497,-151.73,0.00018222,2]
[322871190,1713444639506,-151.73,0.00018222,2]
[322871191,1713444639515,-151.73,0.00018222,2]
[322871192,1713444639524,-151.73,0.00018222,2]
[322871193,1713444639533,-151.73,0.00018222,2]
[322871194,1713444639542,-204.99865097,0.00018222,2]
[322871195,1713444639551,-151.73,0.00018222,2]
[322871196,1713444639560,-410.54433685,0.0001823,2]
[322871197,1713444639569,-2282.85596887,0.0001823,2]
[322871198,1713444639579,-155.14164678,0.0001823,2]
[322871199,1713444639588,-786.17678241,0.0001823,2]
[322871200,1713444639597,-1127.03271038,0.0001823,2]
[322871201,1713444639606,-705.57830306,0.0001823,2]
[322871202,1713444639615,-155.0,0.0001823,2]
[322871203,1713444639624,-239.8411658,0.0001823,2]
[322871204,1713444639633,-1222.95023345,0.0001823,2]
[322871205,1713444639642,-5539.30222896,0.0001823,2]
[322871206,1713444639651,-419.22939929,0.0001823,2]
[322871207,1713444639660,-725.92722762,0.0001823,2]
[322871208,1713444639669,-155.0,0.00018231,2]
[322871209,1713444639678,-205.05937924,0.00018231,2]
[322871210,1713444639687,-1209.72187617,0.00018231,2]
[322871211,1713444639697,-1156.23,0.00018231,2]
[322871212,1713444639706,-1156.23,0.00018231,2]
[322871213,1713444639715,-1156.23,0.00018231,2]
[322871214,1713444639725,-1156.23,0.00018231,2]
[322871215,1713444639734,-1156.23,0.00018231,2]
[322871216,1713444639745,-1156.23,0.00018231,2]
[322871217,1713444639754,-1156.23,0.00018231,2]
[322871218,1713444639763,-1156.23,0.00018231,2]
[322871219,1713444639772,-1156.23,0.00018231,2]
[322871220,1713444639782,-1156.23,0.00018231,2]
[322871221,1713444639791,-1156.23,0.00018231,2]
[322871222,1713444639800,-1156.23,0.00018231,2]
[322871223,1713444639809,-1156.23,0.00018231,2]
[322871224,1713444639818,-1156.23,0.00018231,2]
[322871225,1713444639827,-1156.23,0.00018231,2]
[322871226,1713444639837,-1156.23,0.00018231,2]
[322871227,1713444639846,-1156.23,0.00018231,2]
[322871228,1713444639855,-1156.23,0.00018231,2]
[322871229,1713444639864,-1156.23,0.00018231,2]
[322871230,1713444639873,-1156.23,0.00018231,2]
[322871231,1713444639882,-1156.23,0.00018231,2]
[322871232,1713444639892,-1156.23,0.00018231,2]
[322871233,1713444639902,-1156.41,0.00018231,2]
[322871234,1713444639912,-230.52555794,0.00018231,2]
[322871235,1713444639921,-230.52555794,0.00018231,2]
[322871236,1713444639930,-230.52555794,0.00018231,2]
[322871237,1713444639940,-557.0,0.00018232,2]
[322871238,1713444639949,-169340.58155424,0.00018232,2]
[322871239,1713444640582,-30065.05133928,0.00018232,2]
[322871240,1713444640631,-46595.6987876,0.00018232,2]
[322871241,1713444642268,-30957.50681374,0.00018232,2]
[322871242,1713444642280,-378.70882994,0.00018232,2]
[322871243,1713444642292,-287.22994885,0.00018232,2]
[322871244,1713444642323,-2819.22331219,0.00018232,2]
[322871245,1713444642365,-4651.35388317,0.00018232,2]
[322871246,1713444642377,-6155.3,0.00018232,2]
[322871247,1713444642479,-1487.31897559,0.00018232,2]
[322871248,1713444642524,-857.69234347,0.00018232,2]
[322871249,1713444642535,-619.0,0.00018232,2]
[322871250,1713444642547,-4128.63986883,0.00018232,2]
[322871251,1713444642558,-3933.36463944,0.00018232,2]
[322871252,1713444642571,-1078.50391284,0.00018232,2]
[322871253,1713444642598,-7034.21732542,0.00018232,2]
[322871255,1713444643113,-1.373e-05,0.00018232,2]
[322871265,1713444645243,-155.0,0.00018231,2]
[322871266,1713444645252,-1268.77588272,0.00018232,2]
[322871267,1713444645288,-30962.38,0.00018232,2]
[322871268,1713444645329,-503.9147,0.00018232,2]
[322871269,1713444645380,-1392.05191868,0.00018232,2]
[322871270,1713444645391,-96101.53949293,0.00018232,2]
[322871278,1713444647092,-699.10641811,0.00018027,2]
[322871281,1713444647106,-1156.65287285,0.00018027,2]
[322871291,1713444647237,-644.58765686,0.00018027,2]
[322871292,1713444647249,-17545.83049772,0.00018027,2]
[322871293,1713444647259,-155.0,0.0001823,2]
[322871294,1713444647269,-307.6837022,0.0001823,2]
[322871295,1713444647278,-201.77178925,0.00018231,2]
[322871296,1713444647287,-1209.72187617,0.00018231,2]
[322871297,1713444647296,-55604.23277789,0.00018232,2]
[322871298,1713444647322,-4036.14174906,0.00018232,2]
[322871299,1713444647333,-6234.61535909,0.00018232,2]
[322871300,1713444647397,-2786.12936814,0.00018232,2]
[322871301,1713444647410,-864.91871009,0.00018232,2]
[322871305,1713444699185,150.0,0.000155,2]
[322871307,1713444751879,150.0,0.00015,2]
[322871308,1713444751899,1.18303327,0.00015,2]
[322871309,1713444776373,150.0,0.000155,2]
[322871310,1713444776394,150.0,0.000155,2]
[322871311,1713444776415,271.12519613,0.000155,2]
[322871312,1713444776442,468.95629884,0.000155,2]
[322871313,1713444792686,1040.08149497,0.000155,2]
[322871314,1713444811999,150.0,0.000155,2]
[322871315,1713444812020,150.0,0.000155,2]
[322871316,1713444812041,150.0,0.000155,2]
[322871317,1713444812061,150.0,0.000155,2]
[322871318,1713444812082,150.0,0.000155,2]
[322871319,1713444812105,213.50530878,0.000155,2]
[322871320,1713444812126,76.57618619,0.000155,2]
[322871321,1713444821917,150.0,0.000155,2]
[322871322,1713444821938,127.03544866,0.000155,2]
[322871323,1713444830262,150.0,0.000155,2]
[322871324,1713444830283,150.0,0.000155,2]
[322871325,1713444830304,150.0,0.000155,2]
[322871326,1713444830324,150.0,0.000155,2]
[322871327,1713444830343,150.0,0.000155,2]
[322871328,1713444830363,287.47089203,0.000155,2]
[322871329,1713444830385,2.61060294,0.000155,2]
[322871330,1713444833617,172.96455134,0.000155,2]
[322871331,1713444847280,150.0,0.000155,2]
[322871332,1713444847301,150.0,0.000155,2]
[322871333,1713444847322,150.0,0.000155,2]
[322871334,1713444847343,150.0,0.000155,2]
[322871335,1713444847364,150.0,0.000155,2]
[322871336,1713444847389,48.53564675,0.000155,2]
[322871337,1713444854688,150.0,0.000155,2]
[322871338,1713444854708,150.0,0.000155,2]
[322871339,1713444854729,19.70080444,0.000155,2]
[322871340,1713444855276,130.29919556,0.000124,2]
[322871341,1713444855296,150.0,0.000124,2]
[322871342,1713444855315,150.0,0.000124,2]
[322871343,1713444855334,115.18376216,0.000124,2]
[322871344,1713444858016,34.81623784,0.000155,2]
[322871345,1713444858036,150.0,0.000155,2]
[322871346,1713444858056,150.0,0.000155,2]
[322871347,1713444858077,9.27414786,0.000155,2]
[322871348,1713444858588,140.72585214,0.00015422,2]
[322871349,1713444858608,150.0,0.00015422,2]
[322871350,1713444858627,50.65754618,0.00015422,2]
[322871351,1713444862194,150.0,0.000155,2]
[322871352,1713444862215,23.65817163,0.000155,2]
[322871353,1713444865004,273.97479475,0.000155,2]
[322871354,1713444868782,166.22058923,0.00012,2]
[322871355,1713444868924,298.68138982,0.000155,2]
[322871356,1713444869538,150.0,0.00014725,2]
[322871357,1713444869558,150.0,0.00014725,2]
[322871358,1713444869579,150.0,0.00014725,2]
[322871359,1713444869599,150.0,0.00014725,2]
[322871360,1713444869974,126.32216839,0.00014725,2]
[322871361,1713444871341,150.0,0.000155,2]
[322871362,1713444871361,9.0211518,0.000155,2]
[322871363,1713444873645,150.0,0.000155,2]
[322871364,1713444873668,150.0,0.000155,2]
[322871365,1713444873688,130.95515136,0.000155,2]
[322871366,1713444874901,155.0,0.000155,2]
[322871368,1713444883682,151.0,0.00024005,120]
[322871369,1713444887530,358.49792506,0.00015422,2]
[322871370,1713444887731,288.29006893,0.00015422,2]
[322871371,1713444888217,298.68138982,0.00015422,2]
[322871372,1713444888801,1002.0,0.00028208,120]
[322871373,1713444891553,150.0,0.00015422,2]
[322871374,1713444891574,150.0,0.00015422,2]
[322871375,1713444906688,150.0,0.00015422,2]
[322871376,1713444906711,115.04979466,0.00015422,2]
[322871377,1713444906798,1000.0,0.00028208,120]
[322871378,1713444917346,288.59751438,0.00015422,2]
[322871382,1713445006289,150.0,0.000155,2]
[322871383,1713445065099,4756.96,0.00016823,15]
[322871384,1713445099289,150.0,0.00014876,2]
[322871385,1713445099310,184.00586962,0.00014876,2]
[322871386,1713445099332,528.82413038,0.00014876,2]
[322871387,1713445136321,541.5293836,0.00012617,2]
[322871388,1713445277356,2000.0,0.00024333,30]
[322871389,1713445301117,150.0,0.000155,2]
[322871390,1713445306314,151.0,0.00024106,120]
[322871391,1713445380749,1015.65778585,0.00022,28]
[322871394,1713445532596,151.0,0.00024263,120]
[322871395,1713445567688,4459.65,0.00016533,15]
[322871396,1713445568020,4459.65,0.00019273,15]
[322871397,1713445583855,819.68,0.00014656,2]
[322871399,1713445680414,174.4260644,0.00014656,2]
[322871400,1713445825400,3905.994697,0.00015482,2]
[322871421,1713445832172,-523.66195964,0.00015559,2]
[322871422,1713445832182,-212.03207636,0.0001556,2]
[322871423,1713445832191,-150.0,0.00015722,2]
[322871424,1713445832201,-448.55080687,0.00015723,2]
[322871425,1713445832213,-1245.65543152,0.00015723,2]
[322871426,1713445832245,-629.26449483,0.00015723,2]
[322871427,1713445832320,-508.35757617,0.00015723,2]
[322871428,1713445832332,-1033.7,0.00015723,2]
[322871429,1713445832343,-6665.89650835,0.00015723,2]
[322871430,1713445832355,-610.09620939,0.00015723,2]
[322871431,1713445832456,-530.38881895,0.00015723,2]
[322871432,1713445832486,-4657.3361633,0.00015723,2]
[322871433,1713445832496,-161.47439019,0.000159,2]
[322871434,1713445832504,-1000.0,0.00016,2]
[322871435,1713445832513,-176.714594,0.00016,2]
[322871436,1713445832523,-150.0,0.000165,2]
[322871437,1713445832533,-150.0,0.00016513,2]
[322871438,1713445832542,-524.64,0.00016562,2]
[322871439,1713445832551,-3022.16,0.00016571,2]
[322871440,1713445832561,-499.99,0.00016571,2]
[322871441,1713445832570,-735.23,0.00016574,2]
[322871442,1713445832580,-250.0,0.00016578,2]
[322871443,1713445832589,-2601.9,0.00016578,2]
[322871444,1713445832599,-513.0,0.00016596,2]
[322871445,1713445832609,-200.0,0.00016596,2]
[322871446,1713445832618,-178.183526,0.00016712,2]
[322871447,1713445832628,-159.53,0.00016783,2]
[322871448,1713445832638,-159.53,0.00016829,2]
[322871449,1713445832648,-159.53,0.00016875,2]
[322871450,1713445832659,-663.68,0.000169,2]
[322871451,1713445832669,-819.68,0.0001692,2]
[322871452,1713445832679,-159.53,0.00016921,2]
[322871453,1713445832689,-173.14,0.00016961,2]
[322871454,1713445832699,-159.53,0.00016967,2]
[322871455,1713445832708,-1250.0,0.00017,2]
[322871456,1713445832718,-150.0,0.00017,2]
[322871457,1713445832727,-159.53,0.00017013,2]
[322871458,1713445832736,-159.53,0.00017059,2]
[322871459,1713445832746,-159.53,0.00017105,2]
[322871460,1713445832756,-159.53,0.00017151,2]
[322871461,1713445832765,-2178.65,0.00017174,2]
[322871462,1713445832776,-159.53,0.00017197,2]
[322871463,1713445832786,-159.53,0.00017243,2]
[322871464,1713445832795,-475.36,0.00017272,2]
[322871465,1713445832805,-159.53,0.00017289,2]
[322871466,1713445832814,-210.0,0.00017294,2]
[322871467,1713445832827,-159.53,0.00017335,2]
[322871468,1713445832837,-159.53,0.00017381,2]
[322871469,1713445832847,-159.53,0.00017427,2]
[322871470,1713445832856,-164.94,0.00017435,2]
[322871471,1713445832866,-499.99,0.00017435,2]
[322871472,1713445832875,-159.53,0.00017473,2]
[322871473,1713445832884,-150.0,0.00017478,2]
[322871474,1713445832893,-150.0,0.000175,2]
[322871475,1713445832905,-159.53,0.00017519,2]
[322871476,1713445832914,-178.183526,0.00017534,2]
[322871477,1713445832923,-159.53,0.00017565,2]
[322871478,1713445832933,-150.0,0.00017578,2]
[322871479,1713445832942,-159.53,0.00017611,2]
[322871480,1713445832951,-300.0,0.00017616,2]
[322871481,1713445832961,-159.53,0.00017657,2]
[322871482,1713445832971,-3646.524,0.00017664,2]
[322871483,1713445832980,-1735.0,0.000179,2]
[322871484,1713445832990,-150.0,0.00018,2]
[322871485,1713445833000,-150.84147948,0.00018,2]
[322871486,1713445833010,-1474.16348733,0.00018,2]
[322871487,1713445833019,-4000.0,0.00018029,2]
[322871488,1713445833028,-393.5481,0.0001805,2]
[322871489,1713445833036,-1034.946044,0.00018085,2]
[322871490,1713445833046,-1000.0,0.00018086,2]
[322871491,1713445833055,-7086.84167687,0.00018126,2]
[322871492,1713445833064,-2500.0,0.00018126,2]
[322871493,1713445833073,-7431.82606334,0.00018126,2]
[322871494,1713445833085,-514.33101265,0.00018126,2]
[322871495,1713445833096,-1575.34792401,0.00018126,2]